Cogmind - Beta 11.1 @@@ ROGUE MODE // 2022.10.01 @ 23:24:44 Player: Flerik Result: Destroyed by Y-45 Defender with Heavy Assault Rifle Performance ------------- Evolutions (1) 500 Regions Visited (2) 400 Robots Destroyed (14) 70 Value Destroyed (194) 194 Prototype IDs (0) 0 Alien Tech Used (0) 0 Bonus (0) 0 TOTAL SCORE: 1164 Bonus ------- None Cogmind --------- Core Integrity 0/400 Matter 90/300 Energy 99/100 System Corruption 0% Temperature Cool (9) Movement Core (100) Ox1 Location -9/Materials Parts ------- > --- POWER (1) -------- (None) > --- PROPULSION (2) --- (None) > --- UTILITY (4) ------ Small Storage Unit Transport Network Coupler > --- WEAPON (2) ------- (None) > --- INVENTORY (8) ---- Light Ion Engine Flight Unit Flight Unit Flight Unit Medium Storage Unit Medium Laser Improved Light Cannon Mini Grenade Launcher Peak State ------------ > --- POWER ------------ Ion Engine > --- PROPULSION ------- Light Treads Light Treads > --- UTILITY ---------- Medium Storage Unit Structural Scanner Transport Network Coupler > --- WEAPON ----------- Medium Laser Mini Grenade Launcher > --- INVENTORY -------- Light Ion Engine Small Storage Unit High-capacity Storage Unit Medium Laser Assault Rifle Improved Light Cannon Mini Grenade Launcher Mini Grenade Launcher Plasma Cutter [Rating: 10] Favorites ----------- Power Ion Engine Engine Ion Engine Propulsion Light Treads Treads Light Treads Utility Structural Scanner Device Structural Scanner Storage Medium Storage Unit Processor Transport Network Coupler Weapon Medium Laser Energy Gun Medium Laser Launcher Mini Grenade Launcher Build | -11 -10 -9 ------- Run | Scr Mat Mat Slots Evolved 2 | . . 2 Power . | . . . Propulsion . | . . . Utility 2 | . . 2 Weapon . | . . . Parts Attached 20 | 6 8 6 Power 2 | 1 1 . Engine 2 | 1 1 . Core . | . . . Reactor . | . . . Propulsion 5 | 2 3 . Treads 5 | 2 3 . Leg . | . . . Wheel . | . . . Hover . | . . . Flight . | . . . Utility 6 | 1 2 3 Device 1 | . 1 . Storage 3 | 1 1 1 Processor 2 | . . 2 Hackware . | . . . Protection . | . . . Artifact . | . . . Weapon 7 | 2 2 3 Energy Gun 5 | 2 2 1 Energy Cannon . | . . . Ballistic Gun . | . . . Ballistic Cannon . | . . . Launcher 2 | . . 2 Special Weapon . | . . . Impact Weapon . | . . . Slashing Weapon . | . . . Piercing Weapon . | . . . Special Melee Weapon . | . . . Unidentified Prototypes . | . . . Parts Lost 3 | . . 3 Power . | . . . Propulsion 2 | . . 2 Utility . | . . . Weapon 1 | . . 1 Highest Loss Streak 3 | . . 3 To Critical Strikes . | . . . Average Slot Usage (%) 83 | . 92 74 Engine 10 | . 12 7 Treads 19 | . 25 14 Device 10 | . 11 9 Storage 12 | . 14 11 Processor 7 | . . 13 Energy Gun 20 | . 26 14 Launcher 1 | . . 3 Naked Turns . | . . . Heaviest Build 20 | 14 20 20 Greatest Support 40 | 40 40 40 Greatest Overweight (x) 4 | . 4 2 Average Overweight (x) . | . . . Largest Inventory Capacity 10 | 8 10 10 Average Capacity 8 | 6 8 9 Most Carried 10 | 3 8 10 Average Carried 6 | . 6 7 Final Capacity 10 | 8 10 8 Final Carried 8 | 3 8 8 Class Distribution -------------------- 100% | Mutant Dominant Class ---------------- Mutant | -10/Materials Mutant | -9/Materials Resources | -11 -10 -9 ----------- Run | Scr Mat Mat Matter Collected 235 | 186 44 5 Remotely . | . . . Salvage Created 319 | . 70 249 Parts 25 | . 6 19 Haulers Intercepted 1 | . 1 . Recyclers Shooed 1 | . 1 . Parts Field Recycled . | . . . Retrieved Matter . | . . . Parts Self-Destructed . | . . . Prevented . | . . . Kills | -11 -10 -9 ------- Run | Scr Mat Mat Combat Hostiles Destroyed 9 | . . 9 Guns 3 | . . 3 AOE 6 | . . 6 Classes Destroyed 7 | . 2 5 Builder 1 | . . 1 Hauler 1 | . 1 . Recycler 2 | . . 2 Watcher 1 | . 1 . Swarmer 7 | . . 7 Grunt 1 | . . 1 Sentry 1 | . . 1 Best Kill Streak 6 | . 1 6 Combat Bots Only 5 | . . 5 Max Kills in Single Turn 3 | . 1 3 Gunslinging . | . . . Exploded 3 | . . 3 Melee . | . . . Uniques/NPCs Destroyed . | . . . Combat | -11 -10 -9 -------- Run | Scr Mat Mat Damage Taken 922 | . . 922 Core 402 | . . 402 Absorbed by Shields . | . . . Core Remaining (%) 100 | 100 100 . Volleys Fired 27 | . 3 24 Largest 2 | . 2 2 Hottest 100 | . 100 100 Shots Fired 40 | . 6 34 Gun 34 | . 6 28 Cannon . | . . . Launcher 6 | . . 6 Special . | . . . Kinetic . | . . . Thermal 34 | . 6 28 Explosive 6 | . . 6 Electromagnetic . | . . . Robot Hit Streak 12 | . 2 12 Robot Miss Streak 3 | . 3 2 Penetration Max . | . . . Secondary Targets . | . . . Shots Hit Robots 27 | . 3 24 Core Hits 17 | . 3 14 Critical Kills . | . . . Critical Parts Destroyed . | . . . Critical Strikes 1 | . . 1 Burn 1 | . . 1 Melee Attacks . | . . . Impact . | . . . Slashing . | . . . Piercing . | . . . Sneak Attacks . | . . . Combat Hostiles . | . . . Follow-up Attacks . | . . . Damage Inflicted 893 | . 51 842 Guns 315 | . 51 264 Cannons . | . . . Explosions 578 | . . 578 Melee . | . . . Ramming . | . . . Kinetic . | . . . Thermal 315 | . 51 264 Explosive 578 | . . 578 Electromagnetic . | . . . Impact . | . . . Slashing . | . . . Piercing . | . . . Highest Corruption 2 | . 2 . Average Corruption 2 | . 2 . Corruption Purged . | . . . Corruption Blocked . | . . . Effects 1 | . 1 . Message Errors 1 | . 1 . Overload Shots . | . . . Overflow Damage . | . . . Projectiles . | . . . Explosions . | . . . Melee . | . . . Knockbacks . | . . . Impact . | . . . Kinetic . | . . . Secondary . | . . . Self-Inflicted Damage 84 | . . 84 Shots 3 | . . 3 Rammed . | . . . Targets Rammed . | . . . Kicked . | . . . Crushed . | . . . Highest Temperature 177 | . 78 177 Average Temperature 48 | . 33 52 Received Heat Transfer 258 | . . 258 Siege Activations . | . . . Robots Corrupted . | . . . Combat Hostiles . | . . . Parts Fried . | . . . Impact Corruptions . | . . . Robots Melted . | . . . Combat Hostiles . | . . . Parts Melted . | . . . Heat Transferred 999 | . 148 851 Parts Sabotaged . | . . . Parts Stolen . | . . . Parts Stripped . | . . . Power Chain Reactions . | . . . Missiles Intercepted . | . . . Alert | -11 -10 -9 ------- Run | Scr Mat Mat Peak Influence 408 | . 52 408 Initial 21 | . . 21 Average 84 | . 18 168 Maximum Alert Level 2 | . . 2 Low Security (%) 79 | 100 100 55 Level 1 18 | . . 41 Level 2 1 | . . 3 Level 3 . | . . . Level 4 . | . . . Level 5 . | . . . High Security . | . . . Max Security . | . . . Squads Dispatched 2 | . . 2 Investigation 1 | . . 1 Extermination . | . . . Reinforcement 1 | . . 1 Assault . | . . . Garrison . | . . . Intercept . | . . . Searches Triggered . | . . . Construction Impeded . | . . . Haulers Reinforced . | . . . Active Scanning Responses . | . . . Cargo Convoy Interrupts . | . . . Stealth | -11 -10 -9 --------- Run | Scr Mat Mat Distress Signals 1 | . . 1 Communications Jammed . | . . . Distress Signals . | . . . Times Spotted 19 | . 1 18 Peak Tracking Total 8 | . 1 8 Tactical Retreats . | . . . Traps | -11 -10 -9 ------- Run | Scr Mat Mat Traps Triggered 6 | . 5 1 Indirectly . | . . . Trap Hack Attempts . | . . . Triggered . | . . . Disarmed 2 | . . 2 Reprogrammed . | . . . Reused . | . . . Traps Extracted . | . . . Installed . | . . . Triggered . | . . . Machines | -11 -10 -9 ---------- Run | Scr Mat Mat Machines Disabled 1 | . . 1 Max in Single Turn 1 | . . 1 Machines Sabotaged . | . . . Garrisons Compromised . | . . . Overloaded Fab Kills . | . . . Hacking | -11 -10 -9 --------- Run | Scr Mat Mat Machines Accessed 5 | . 3 2 Terminals 5 | . 3 2 Fabricators . | . . . Repair Stations . | . . . Recycling Units . | . . . Scanalyzers . | . . . Garrison Access . | . . . Total Hacks 19 | . 11 8 Successful 13 | . 8 5 Failed 6 | . 3 3 Catastrophic 1 | . 1 . Database Lockouts . | . . . Manual 16 | . 10 6 Terminals 19 | . 11 8 Fabricators . | . . . Repair Stations . | . . . Recycling Units . | . . . Scanalyzers . | . . . Garrison Access . | . . . Terminal Hacks 7 | . 4 3 Record 4 | . 3 1 Level Access Points 1 | . 1 . Disarm Traps 1 | . . 1 Recall Reinforcements 1 | . . 1 Fabricator Hacks . | . . . Repair Station Hacks . | . . . Recycling Unit Hacks . | . . . Scanalyzer . | . . . Garrison Access Hacks . | . . . Unauthorized Hacks 6 | . 4 2 Terminals 6 | . 4 2 Botnet 5 | . 3 2 Operators 1 | . 1 . Fabricators . | . . . Repair Stations . | . . . Recycling Units . | . . . Scanalyzers . | . . . Garrison Access . | . . . Data Cores Recovered . | . . . Used . | . . . Hacking Detections 4 | . 2 2 Full Trace Events 1 | . . 1 Feedback Events . | . . . Feedback Blocked . | . . . Robot Schematics Acquired . | . . . Robots Built . | . . . Authchips . | . . . Time . | . . . Total Robot Build Rating . | . . . Part Schematics Acquired . | . . . Parts Built . | . . . Authchips . | . . . Time . | . . . Total Part Build Rating . | . . . Parts Repaired . | . . . Time . | . . . Parts Recycled . | . . . Recycled Matter . | . . . Retrieved Matter . | . . . Retrieved Components . | . . . Parts Scanalyzed . | . . . Part Schematics Acquired . | . . . Parts Damaged . | . . . Bothacking | -11 -10 -9 ------------ Run | Scr Mat Mat Used RIF Installer . | . . . Robots Hacked . | . . . Non-combat . | . . . Combat . | . . . Robot Hacks Applied . | . . . Relay Couplers Released . | . . . Fabnet Peak Effective % . | . . . Robots Rewired . | . . . Allies Hacked . | . . . Hacks Repelled . | . . . Allies | -11 -10 -9 -------- Run | Scr Mat Mat Total Allies . | . . . Largest Group . | . . . Highest-Rated Group . | . . . Highest-Rated Ally . | . . . Total Orders . | . . . Ally Attacks . | . . . Total Damage . | . . . Kills . | . . . Allies Corrupted . | . . . Allies Melted . | . . . Intel | -11 -10 -9 ------- Run | Scr Mat Mat Robot Analysis Total . | . . . Derelict Logs Recovered . | . . . Drone Launches . | . . . Drone Recoveries . | . . . Exploration | -11 -10 -9 ------------- Run | Scr Mat Mat Turns Passed 613 | 88 245 280 Spaces Moved 331 | 51 134 146 Core 61 | 4 2 55 Treads 270 | 47 132 91 Legs . | . . . Wheels . | . . . Hover . | . . . Flight . | . . . Fastest Speed 50 | 50 160 100 Average Speed 150 | 151 160 141 Slowest Speed 250 | 160 250 160 Overloaded Moves . | . . . Propulsion Burnouts . | . . . Robots Hopped . | . . . Cave-ins Triggered . | . . . Exploration Rate (%) 17 | 4 27 21 Regions Visited 2 Branch Regions . Pre-discovered Areas . | . . . Known Exits Taken 1 | . 1 . Unknown Exits Taken 1 | 1 . . Scrap Searched . | . . . Spaces Dug . | . . . Terrain Destroyed 29 | . . 29 Melee . | . . . Projectile . | . . . AOE 29 | . . 29 Terrain Rammed . | . . . Walls Destroyed . | . . . Machines Disabled . | . . . Actions | -11 -10 -9 --------- Run | Scr Mat Mat Total 404 | 59 155 190 Wait 1 | . 1 . Move 329 | 50 133 146 Hop . | . . . Pick Up 15 | 3 7 5 Fast Attach 14 | 6 7 1 Attach 4 | . . 4 Detach 3 | . . 3 Swap 2 | . 1 1 Drop 9 | . 3 6 Fire 27 | . 3 24 Melee . | . . . Ram . | . . . Kick . | . . . Crush . | . . . Escape Stasis . | . . . Rewire . | . . . Trap . | . . . Miscellaneous . | . . . Route ------- -11/Scrapyard -10/Materials (discovered 3 exits: *Mat x3) -9/Materials History --------- Turn | Location | Event 7 | -11/Scrapyard | Discovered new exit (range 15) 89 | -11/Scrapyard | Entered Materials 202 | -10/Materials | Identified exit to Materials 324 | -10/Materials | Build established: Mutant 334 | -10/Materials | Entered another Materials area 334 | -9/Materials | Evolved 2 slots: Utility x2 529 | -9/Materials | Core integrity fell below 50% 553 | -9/Materials | Lost 3 parts (2n1w) 564 | -9/Materials | Core integrity fell below 20% 614 | -9/Materials | Destroyed by Y-45 Defender with Heavy Assault Rifle Last Messages --------------- 00583_ K-01 Serf collects debris. 00586_ U-05 Engineer builds a Wall. 00586_ Triggered Blade Trap. 00586_ Massive razor-sharp blades shoot up from within the floor. 00586_ Structural Scanner severed. 00586_ Terrain Scan Processor severed. 00586_ U-05 Engineer builds a Door. 00589_ U-05 Engineer lays Concrete. 00599_ Connecting with Terminal... >>Trojan(Botnet) Trojan loaded successfully. Testing... Terminal linked with 1 system. Awaiting botnet instructions. >>Recall(Reinforcements) Establishing remote squad link... No tasked reinforcement squads found. >>Traps(Disarm) Disarmed 2 Blade Traps. 00613_ U-05 Engineer lays Concrete. Map ----- +----------------------------------------------------+ | ?????????????????????????????????????????????????? | | ?????????????????????????????????????????????????? | | ?????????????????????????????????????????????????? | | ???????a?????????????????????????????????????????? | | # ??????????????????????????????????????? | | ########## ????????????????????????????????????? | | ???????????????????????????????????? | | ???????????????????????????????????? | | + ?????????????????????????????????? | | ########??? # ?????????????????????????????????? | | ########? # ?????????????????????????????????? | | #????????## # ?????????????????????????????????? | | #????????## # ?????????????????????????????????? | | #????????## # ?????????????????????????????????? | | ?????????## ###############????????????????????? | | ?????????## # T #????????????????????? | | ?????????## # #????????????????????? | | ########### # """ """ """ #????????????????????? | | ########### # """ """ """ #????????????????????? | | # ## # # """ """ """ #########????????????? | | #% # # / aa ?????? | | + # #######+############/##????????????? | | # %!]% #] ##???????????????????? | | # !] + ##???????????????????? | | # %[ # ! ##???????????????????? | | # # ###########@ ##???????????????????? | | # # ########### #????????????????????? | | # # # ????????# #????????????????????? | | ########### # ????????# #????????????????????? | | ########### # ????????# #????????????????????? | | ????????? # # ????????# #????????????????????? | | ?????????"# # ????????# #????????????????????? | | ?????????"# # ????????+ #????????????????????? | | ?????????"# # ????????# #????????????????????? | | ????????? # # ????????? #????????????????????? | | ?????????## ##????????? #????????????????????? | | ????????? ????????? ????????????????????? | | ?????????? ?????????? ????????????????????? | | ?????????? ??????????? Y ????????????????????? | | ??????????? ??????????? ????????????????????? | | ????????????????????????? ?????????????????????? | | ?????????????????????????????????????????????????? | | ?????????????????????????????????????????????????? | | ?????????????????????????????????????????????????? | | ?????????????????????????????????????????????????? | | ?????????????????????????????????????????????????? | | ?????????????????????????????????????????????????? | | ?????????????????????????????????????????????????? | | ?????????????????????????????????????????????????? | | ?????????????????????????????????????????????????? | +----------------------------------------------------+ Best States ------------- Heat Dissipation 28 Energy Generation 10 Energy Capacity 250 Matter Stores 260 Matter Capacity 300 Sight Range 16 Terrain Scan Density 85 Evasion (%) 40 Recoil Reduction 2 Item Schematics ----------------- None Robot Schematics ------------------ None Fabricated ------------ Nothing Alien Tech Used ----------------- None Achievements -------------- None Challenges ------------ None Game ------ Seed SapperStructuralCannon Manual? 0 Play Time 00:12:15 Cumulative 41.2 hours Start 2022.10.01 @ 23:14:21 End 2022.10.01 @ 23:24:44 Sessions 1 Manual Loads 0 Difficulty Rogue Special Mode None Game No. 68 Rogue 67 Adventurer 1 Explorer 0 Win Type - Total 3 Types 3/0/0/0/0/0/0/0/0 Lore% 45 Gallery% 42 Achievement% 40 Wizard Run 0 Options --------- ASCII 0 Keyboard 0 Movement Numpad Keybinds 0 Fullscreen 1 Font 18/SmallcapsGlow Map View 76x50 Tactical HUD 1 Map Filters NONE Filters NONE Steam 1 RUN: 4efe4f6a-e4ed-423c-894f-e33013112487